[Event "Croatian Team Cup Final 2022"]
[Site "Vodice"]
[Date "2022.05.19"]
[Round "3.21"]
[White "Pavic, Filip"]
[Black "Tica, Sven"]
[Result "1/2-1/2"]
[ECO "B13"]
[WhiteElo "2270"]
[BlackElo "2438"]
[Annotator "TA"]
[PlyCount "119"]
[EventDate "2022.05.18"]
[EventType "team-tourn"]
[EventCountry "CRO"]
[SourceTitle "playchess.com"]
[Source "ChessBase"]
[SourceQuality "1"]
[TimeControl "40/5400+30:1800+30"]

{[%evp 11,119,29,25,10,23,22,27,12,10,16,28,25,35,2,3,5,7,5,12,14,13,14,0,0,0,0,16,0,14,2,20,21,21,8,25,29,18,27,20,-8,0,0,0,0,28,0,0,0,0,0,0,0,0,0,0,0,0,0,0,0,0,0,0,-2,0,0,0,0,0,0,0,0,0,0,0,0,46,46,74,55,49,51,73,83,72,0,230,79,150,51,68,17,51,52,46,8,8,8,8,8,97,97,97,0,0,0,94,0,0,0]} 1. e4 {[%emt 0:00:47]} c6 {[%emt 0:00:07]} 2. d4 {[%emt 0:00:19]} d5 {[%emt 0:00:05]} 3. exd5 {[%emt 0:00:49]} cxd5 {[%emt 0:00:07]} 4. Bd3 {[%emt 0:00:35]} Nf6 {[%emt 0:00:13]} 5. c3 {[%emt 0:01:34]} Bg4 {[%emt 0:01:48]} 6. Qb3 {[%emt 0:01:26]} Qc7 {[%emt 0:00:07]} 7. Ne2 {[%emt 0:07:53] B13: Caro-Kann: Exchange Variation and Panov-Botvinnik Attack.} Nc6 {[%emt 0:09:13]} 8. Bf4 {[%emt 0:03:11]} Qd7 {[%emt 0:00:13]} 9. h3 {[%emt 0:02:34] White has an edge.} Bh5 {[%emt 0:00:39]} 10. Nd2 {[%emt 0:07:21][%cal Bb1d2,Bd2f3,Bf3e5][%mdl 32]} Bg6 {[%emt 0:04:17]} 11. Bxg6 {[%emt 0:03:02]} hxg6 {[%emt 0:00:07]} 12. Ng3 {[%emt 0:04:13]} e6 {[%emt 0:04:40]} 13. Nf3 {[%emt 0:07:46]} Bd6 {[%emt 0:04:23]} 14. Bxd6 {[%emt 0:01:43]} Qxd6 {[%emt 0:00:07]} 15. O-O {[%emt 0:03:05] [#]} O-O $146 {[%emt 0:00:28]} ({Predecessor:} 15... Ne4 16. Nxe4 dxe4 17. Ng5 Qd5 18. Qxb7 O-O 19. c4 Qxc4 20. Rac1 Na5 21. Qxe4 Qd5 {1-0 (28) Tari,A (2639)-Harutjunyan,G (2439) Chess.com INT 2021}) 16. Rfe1 {[%emt 0:01:55]} Rab8 {[%emt 0:08:19]} 17. a4 {[%emt 0:03:43]} Rfc8 {[%emt 0:04:50]} 18. Ne5 {[%emt 0:03:42]} Na5 {[%emt 0:01:29]} 19. Qb5 {[%emt 0:06:17]} Qc7 {[%emt 0:00:40]} 20. Nf1 {[%emt 0:04:33]} a6 {[%emt 0:01:33]} 21. Qe2 {[%emt 0:04:17]} Nc4 {[%emt 0:04:34]} 22. Nxc4 {[%emt 0:01:23]} (22. Nd3 {with more complications.} a5 23. Nd2 Nxd2 24. Qxd2 Ne4 25. Qd1) 22... Qxc4 {[%emt 0:00:31]} (22... dxc4 {keeps more tension.} 23. Nd2 b5 24. axb5 axb5 25. Ra2 Ra8) 23. Qxc4 {[%emt 0:01:51]} Rxc4 {[%emt 0:00:08]} 24. Nd2 {[%emt 0:03:29]} Rc6 {[%emt 0:00:42]} 25. Nb3 {[%emt 0:05:39]} Rb6 {[%emt 0:07:04]} 26. Ra3 {[%emt 0:00:27]} Ne4 {[%emt 0:00:59]} 27. Re2 $1 {[%emt 0:00:34]} Rc8 {[%emt 0:00:38]} 28. Na5 {[%emt 0:05:57]} Nd6 {[%emt 0:04:07]} 29. Kf1 {[%emt 0:01:46]} Kf8 {[%emt 0:01:58]} 30. Ke1 {[%emt 0:01:14]} Ke7 {[%emt 0:00:33]} 31. Kd1 {[%emt 0:01:08]} g5 {[%emt 0:02:45]} 32. Kc2 {[%emt 0:04:49]} Rc7 {[%emt 0:03:32]} 33. Rb3 {[%emt 0:01:56]} Rxb3 {[%emt 0:00:59]} 34. Nxb3 $11 {[%emt 0:00:03][%mdl 4096] Endgame KRN-KRN} Nc4 {[%emt 0:01:00]} 35. Nc5 {[%emt 0:00:45]} a5 {[%emt 0:01:09]} 36. b3 {[%emt 0:02:23]} Nd6 {[%emt 0:00:07]} 37. f3 {[%emt 0:00:43]} b6 {[%emt 0:01:33]} 38. Nd3 {[%emt 0:00:02]} Nf5 {[%emt 0:01:11] aiming for ...Nxd4+.} 39. Kd2 {[%emt 0:01:39]} Rc8 {[%emt 0:01:44]} 40. Ne5 {[%emt 0:00:00]} f6 {[%emt 0:00:00]} 41. Ng4 {[%emt 0:07:07]} Kd7 {[%emt 0:05:14]} 42. Ne3 {[%emt 0:00:45]} Nd6 {[%emt 0:00:07]} 43. Kd3 {[%emt 0:01:16]} f5 {[%emt 0:02:36]} (43... Re8 $11 {is superior.}) 44. Rc2 $14 {[%emt 0:08:48]} Rb8 {[%emt 0:10:28]} 45. c4 {[%emt 0:03:04] Against b5} dxc4+ {[%emt 0:01:37]} 46. bxc4 {[%emt 0:06:34]} g6 {[%emt 0:01:27]} 47. Rb2 {[%emt 0:02:29] Threatens to win with c5.} Rb7 {[%emt 0:01:11]} 48. Kc3 {[%emt 0:02:47]} (48. Nc2 $16) 48... Kc7 $2 {[%emt 0:03:06]} (48... Rc7 $1 $11 {and Black stays safe.}) 49. Nc2 $2 {[%emt 0:01:19]} (49. c5 $18 {is the precise move to win.} bxc5 50. dxc5) 49... Kc6 {[%emt 0:01:14] [#]} (49... Kd7 $142) 50. Na3 {[%emt 0:00:38]} (50. Ne1 $1 $16) 50... Re7 {[%emt 0:05:46]} 51. Re2 {[%emt 0:00:19]} (51. Nb5 $1 $14 Nf7 52. Kd3) 51... Nf7 {[%emt 0:00:54]} 52. d5+ {[%emt 0:02:51]} Kd7 {[%emt 0:00:37]} 53. dxe6+ {[%emt 0:00:33]} Rxe6 {[%emt 0:00:06]} 54. Rxe6 {[%emt 0:00:46]} Kxe6 {[%emt 0:00:02] KN-KN} 55. Kd4 {[%emt 0:01:28] c5 is the strong threat.} Kd6 {[%emt 0:00:06] Prevents c5+.} (55... Ne5 $11 {keeps the balance.}) 56. Nb5+ $16 {[%emt 0:00:13]} Kc6 {[%emt 0:00:05][%cal Og5g4]} 57. Na7+ {[%emt 0:00:19]} Kb7 {[%emt 0:00:06]} 58. Nb5 {[%emt 0:00:10] Black must now prevent Kd5.} Kc6 {[%emt 0:00:04][%cal Og5g4] [#]} 59. Na7+ {[%emt 0:00:03]} ({White should play} 59. g4 $1 $16) 59... Kb7 $1 $11 {[%emt 0:00:08]} 60. Nb5 {[%emt 0:01:36] Weighted Error Value: White=0.15 (very precise) /Black=0.13 (very precise)} 1/2-1/2

[Event "Croatian Team Cup Final 2022"]
[Site "Vodice"]
[Date "2022.05.20"]
[Round "4.1"]
[White "Saric, Ivan"]
[Black "Martinovic, Sasa"]
[Result "1-0"]
[ECO "C13"]
[WhiteElo "2693"]
[BlackElo "2552"]
[Annotator "TA"]
[PlyCount "99"]
[EventDate "2022.05.18"]
[EventType "team-tourn"]
[EventCountry "CRO"]
[SourceTitle "playchess.com"]
[Source "ChessBase"]
[SourceQuality "1"]
[TimeControl "40/5400+30:1800+30"]

{[%evp 11,99,19,28,31,18,12,10,14,18,18,39,-17,28,39,67,13,14,15,22,23,8,15,15,6,18,12,51,54,52,45,59,51,51,55,54,49,58,60,83,40,42,37,39,35,31,26,36,17,14,8,12,11,50,33,41,8,5,7,50,48,50,51,51,41,134,122,346,346,339,339,508,472,470,450,575,583,476,567,535,515,504,470,638,618,975,884,805,543,1095,950]} 1. e4 {[%emt 0:00:03]} e6 {[%emt 0:00:04]} 2. d4 {[%emt 0:00:10]} d5 {[%emt 0:00:04]} 3. Nc3 {[%emt 0:00:03]} Nf6 {[%emt 0:00:05]} 4. Bg5 {[%emt 0:00:30]} dxe4 {[%emt 0:00:04]} 5. Nxe4 {[%emt 0:00:03]} Be7 {[%emt 0:00:06]} 6. Bxf6 {[%emt 0:00:05]} gxf6 {[%emt 0:00:03]} 7. Nc3 {[%emt 0:02:17] C13: French: Classical System: 4 Bg5 Be7, Alekhine-Chatard Attack.} c6 {[%emt 0:00:04]} 8. g3 {[%emt 0:01:39] [#]} Qb6 $146 {[%emt 0:00:07]} ({Predecessor:} 8... Nd7 9. Bg2 f5 10. Qe2 Nf6 11. Nf3 Bd7 12. Ne5 Bd6 13. O-O-O Qe7 14. Na4 O-O-O {1-0 (36) De Vreugt,D (2429)-Stellwagen,D (2337) Amsterdam 2001}) 9. Rb1 {[%emt 0:01:21] The position is equal.} O-O {[%emt 0:00:09]} 10. Bg2 {[%emt 0:04:20]} Rd8 {[%emt 0:01:31]} 11. Nf3 {[%emt 0:03:52]} ({Better is} 11. Qg4+ $14 Kh8 12. Qh4 Rxd4 13. Be4 Rxe4+ 14. Qxe4) 11... e5 {[%emt 0:16:08][%cal Re5d4]} 12. Qe2 {[%emt 0:04:52]} Qa6 {[%emt 0:13:52]} ({Weaker is} 12... exd4 13. Qxe7 dxc3 14. O-O $18 (14. Qxf6 Re8+ 15. Ne5 Qc7 $14)) 13. dxe5 {[%emt 0:05:47]} (13. Qe4 $1 $14) 13... Bf5 $11 {[%emt 0:00:58]} 14. Rc1 {[%emt 0:07:17]} Qxe2+ {[%emt 0:02:47]} 15. Nxe2 {[%emt 0:07:16]} fxe5 {[%emt 0:00:57]} 16. Nxe5 {[%emt 0:01:33]} Bf6 {[%emt 0:02:31] A strong pair of Bishops.} 17. f4 {[%emt 0:01:59]} Nd7 {[%emt 0:06:58]} 18. O-O {[%emt 0:00:33]} Bxe5 {[%emt 0:04:51]} 19. fxe5 {[%emt 0:00:06]} Bg4 {[%emt 0:00:12]} 20. Nc3 {[%emt 0:02:05][%cal Be2c3,Bc3e4,Be4c5][%mdl 32]} Nxe5 {[%emt 0:01:12]} 21. Rce1 {[%emt 0:00:10]} Ng6 {[%emt 0:03:43]} 22. Ne4 {[%emt 0:00:38] [#] Hoping for Nf6+.} Be6 {[%emt 0:09:47]} 23. b3 {[%emt 0:00:57]} Nf8 {[%emt 0:04:06]} 24. Nc5 {[%emt 0:02:48]} Rab8 {[%emt 0:02:07]} 25. Rd1 {[%emt 0:00:10] White is more active.} Bd5 {[%emt 0:02:12]} 26. Bh3 {[%emt 0:07:44]} Ne6 $1 {[%emt 0:05:21]} 27. Bxe6 {[%emt 0:01:50]} Bxe6 {[%emt 0:00:01]} 28. Nxe6 {[%emt 0:03:31]} fxe6 $14 {[%emt 0:00:11][%mdl 4096] Endgame KRR-KRR} 29. Rde1 {[%emt 0:00:28]} Rd2 {[%emt 0:06:09]} 30. Rf2 {[%emt 0:00:33]} Rxf2 {[%emt 0:04:22]} 31. Kxf2 $11 {[%emt 0:00:05] KR-KR} Rf8+ {[%emt 0:00:02]} 32. Ke3 {[%emt 0:02:21]} Rf5 {[%emt 0:00:11]} 33. g4 {[%emt 0:05:43]} Re5+ {[%emt 0:01:10]} 34. Kf2 {[%emt 0:00:37]} Rc5 {[%emt 0:02:18]} (34... Ra5 $5 {[%cal Ra5a2]}) 35. c4 {[%emt 0:01:04]} Kf7 {[%emt 0:00:19]} 36. h4 {[%emt 0:01:50]} b5 {[%emt 0:11:08]} 37. Re4 {[%emt 0:01:19]} b4 {[%emt 0:01:57]} (37... e5 $14) 38. Ke3 $16 {[%emt 0:02:20]} e5 $2 {[%emt 0:01:06] Loses the game.} (38... Ra5 $16) 39. Kd3 $18 {[%emt 0:01:08]} Ra5 {[%emt 0:00:28]} 40. Re2 {[%emt 0:00:00]} h6 {[%emt 0:00:00]} (40... Kg6 $142 41. Ke4 Kg7) 41. Ke4 {[%emt 0:03:15] White is clearly winning.} Kg6 {[%emt 0:02:51]} 42. Rf2 {[%emt 0:02:21]} Rc5 {[%emt 0:00:55]} 43. Rf5 {[%emt 0:01:02]} ({Less strong is} 43. Rd2 Ra5 44. Rd6+ Kg7 $18) 43... Ra5 {[%emt 0:00:06]} 44. h5+ {[%emt 0:00:05]} Kg7 {[%emt 0:00:07]} 45. Rf2 {[%emt 0:00:09]} Rc5 {[%emt 0:00:58]} 46. Rd2 {[%emt 0:01:31]} Kf6 {[%emt 0:02:44]} 47. Rd6+ {[%emt 0:00:28]} Kg5 {[%emt 0:00:09]} 48. Kf3 {[%emt 0:00:32] [#] White threatens Kg3 and mate.} Kh4 {[%emt 0:00:44]} 49. Rxh6 {[%emt 0:00:08] Black must now prevent Rg6.} Ra5 {[%emt 0:02:29]} 50. Rg6 {[%emt 0:01:19] Weighted Error Value: White=0.08 (flawless) /Black=0.29 (precise)} 1-0

[Event "Croatian Team Cup Final 2022"]
[Site "Vodice"]
[Date "2022.05.20"]
[Round "4.2"]
[White "Livaic, Leon"]
[Black "Markus, Robert"]
[Result "1-0"]
[ECO "B07"]
[WhiteElo "2562"]
[BlackElo "2613"]
[Annotator "TA"]
[PlyCount "149"]
[EventDate "2022.05.18"]
[EventType "team-tourn"]
[EventCountry "CRO"]
[SourceTitle "playchess.com"]
[Source "ChessBase"]
[SourceQuality "1"]
[TimeControl "40/5400+30:1800+30"]

{[%evp 9,149,-4,22,0,48,43,33,44,43,35,52,48,61,56,51,68,77,20,20,20,15,20,31,29,52,42,28,22,56,42,80,23,54,47,42,39,56,62,59,55,49,49,52,41,44,8,9,0,34,17,11,0,16,16,21,21,22,21,29,18,22,17,17,14,17,21,21,21,83,66,78,75,96,87,87,98,94,85,87,37,79,27,30,30,30,30,30,27,27,16,27,27,27,27,27,27,27,27,27,27,102,12,152,152,152,152,152,0,0,0,0,0,6,0,12,12,49,0,0,0,0,0,0,0,0,0,0,0,12816,12591,7687,1847,12360,12635,7951,7687,6235,6070,5778,3890,29974,29973]} 1. c4 {[%emt 0:00:05]} Nf6 {[%emt 0:00:11]} 2. Nc3 {[%emt 0:00:05]} d6 {[%emt 0:00:15]} 3. e4 {[%emt 0:01:08]} e5 {[%emt 0:00:59]} 4. g3 {[%emt 0:00:42]} Bg4 {[%emt 0:03:21]} 5. Be2 {[%emt 0:02:27] [#]} Be6 $146 {[%emt 0:04:11]} ({Predecessor:} 5... Bxe2 6. Ngxe2 Nbd7 7. O-O c6 8. d4 Be7 9. f3 O-O 10. Be3 Nb6 11. b3 exd4 12. Nxd4 {1-0 (36) Villasenor Rubio,E (2260)-Lorente Penalva,D (2178) Linares 2013}) 6. Nf3 {[%emt 0:01:02] B07: Pirc Defence: Miscellaneous Systems.} Nc6 {[%emt 0:03:11]} (6... c5 $11 {might be stronger.}) 7. d4 $14 {[%emt 0:06:30]} exd4 {[%emt 0:02:01]} 8. Nxd4 {[%emt 0:00:04] White is slightly better.} Nxd4 {[%emt 0:00:09]} 9. Qxd4 {[%emt 0:00:03]} Be7 {[%emt 0:00:13]} 10. b3 {[%emt 0:13:56]} Nd7 {[%emt 0:04:35]} 11. Bb2 {[%emt 0:01:37]} (11. Qxg7 $2 Bf6 12. Qxh8+ Bxh8 $19) 11... Bf6 {[%emt 0:00:09]} 12. Qd2 {[%emt 0:00:20]} a5 {[%emt 0:05:41]} 13. Nb5 {[%emt 0:10:12]} ({White should play} 13. f4 $16) 13... O-O {[%emt 0:10:47]} 14. O-O {[%emt 0:00:51]} Bxb2 {[%emt 0:01:16]} 15. Qxb2 {[%emt 0:00:03]} f5 {[%emt 0:08:32]} 16. exf5 $1 {[%emt 0:01:35]} Bxf5 {[%emt 0:00:08]} 17. Rfe1 {[%emt 0:07:54]} Nc5 {[%emt 0:02:26]} 18. Qd4 {[%emt 0:01:31]} Kh8 {[%emt 0:14:10]} 19. Bf1 {[%emt 0:10:09]} Ne6 {[%emt 0:07:25]} 20. Qe3 {[%emt 0:01:56] White is more active.} (20. Qd2 $16) 20... c6 {[%emt 0:05:31]} (20... Qf6 {feels hotter.} 21. Rad1 Bg4 22. Be2 Bh3) 21. Nd4 {[%emt 0:00:42]} Nxd4 {[%emt 0:00:14]} 22. Qxd4 {[%emt 0:00:03]} Qc7 {[%emt 0:03:43]} 23. Re3 {[%emt 0:10:22]} Rae8 {[%emt 0:02:38]} 24. Rae1 {[%emt 0:00:22]} Rxe3 {[%emt 0:01:32]} 25. Qxe3 {[%emt 0:01:24]} Kg8 {[%emt 0:00:13]} 26. Qg5 {[%emt 0:08:55]} h6 {[%emt 0:01:38]} 27. Qh4 {[%emt 0:00:06]} Qb6 {[%emt 0:01:33][%cal Of5d3]} 28. Qe7 {[%emt 0:01:47]} d5 {[%emt 0:05:30]} 29. Re3 {[%emt 0:04:57]} Be4 {[%emt 0:00:48]} 30. Bg2 {[%emt 0:02:22]} Bxg2 {[%emt 0:00:44]} 31. Kxg2 {[%emt 0:00:03]} dxc4 $11 {[%emt 0:00:47][%mdl 4096] Endgame KQR-KQR} 32. Qe6+ {[%emt 0:02:29]} Kh8 {[%emt 0:01:07]} 33. Qxc4 {[%emt 0:00:05]} Qb4 {[%emt 0:02:04]} 34. Qe2 {[%emt 0:02:28]} Qd4 {[%emt 0:01:25]} 35. h4 {[%emt 0:01:29]} b5 {[%emt 0:00:55]} 36. Qd3 {[%emt 0:01:31]} Qb2 {[%emt 0:01:15]} 37. Re2 {[%emt 0:00:43]} Qf6 {[%emt 0:00:05]} 38. Rc2 {[%emt 0:02:01]} Rd8 {[%emt 0:01:41]} (38... Qe6 $11 {remains equal.}) 39. Qf3 {[%emt 0:01:03]} (39. Qe4 {with more complications.} Rc8 40. Rc5 Rf8 41. f3) 39... Qxf3+ {[%emt 0:01:29]} 40. Kxf3 $14 {[%emt 0:00:00] KR-KR} a4 {[%emt 0:00:00]} 41. bxa4 $1 {[%emt 0:02:43]} bxa4 {[%emt 0:00:10]} 42. Ke3 {[%emt 0:00:28]} Re8+ {[%emt 0:06:35]} 43. Kd3 {[%emt 0:03:35]} Rf8 {[%emt 0:00:05]} 44. f4 {[%emt 0:03:52]} (44. Rxc6 Rxf2 45. Kc4 Rxa2 $15) (44. Kc4 $16) 44... g5 {[%emt 0:00:08]} 45. Ke4 {[%emt 0:12:42]} ({Much worse is} 45. Rxc6 gxf4 46. gxf4 (46. Rxh6+ Kg7 $11) 46... Rxf4 $11) (45. hxg5 $16 {Black must now prevent Rh2.} hxg5 46. Ke4 (46. fxg5 Rf3+ 47. Kc4 Rxg3 $16) (46. Rxc6 gxf4 47. gxf4 Rxf4 $11)) 45... gxf4 {[%emt 0:00:18]} 46. gxf4 {[%emt 0:00:04]} Re8+ {[%emt 0:00:10]} 47. Kf5 {[%emt 0:00:16]} Rf8+ {[%emt 0:00:31]} 48. Kg4 {[%emt 0:01:17]} Rc8 {[%emt 0:00:53]} 49. Rc4 {[%emt 0:02:16]} a3 {[%emt 0:00:37]} 50. Rc3 {[%emt 0:00:45]} c5 {[%emt 0:07:29]} 51. Rxa3 {[%emt 0:00:13]} Kg7 {[%emt 0:00:36]} 52. Kf5 {[%emt 0:00:30]} c4 {[%emt 0:07:59]} 53. Rc3 {[%emt 0:00:07] And now a4 would win.} Rc5+ {[%emt 0:06:48]} 54. Ke6 {[%emt 0:08:28] aiming for a4.} Ra5 {[%emt 0:04:01]} (54... Rc6+ $1 $11 55. Kd5 Ra6) 55. a3 {[%emt 0:00:06]} (55. Rg3+ $1 $16 Kf8 56. a3) 55... Ra4 {[%emt 0:00:29]} (55... Ra6+ $11 {keeps the balance.} 56. Kd5 Kg6) 56. Rg3+ $16 {[%emt 0:01:35]} Kf8 {[%emt 0:00:32][%cal Oc4c3]} 57. f5 {[%emt 0:00:23]} Ra5 {[%emt 0:02:50]} 58. Kf6 $2 {[%emt 0:04:24]} (58. Rc3 $16) 58... Ra6+ $1 $11 {[%emt 0:02:12]} 59. Ke5 {[%emt 0:00:00]} Kf7 {[%emt 0:01:22]} 60. Kd5 {[%emt 0:00:37]} Ra4 {[%emt 0:00:25]} 61. Kc5 {[%emt 0:01:03]} Kf6 {[%emt 0:00:18]} 62. Kb5 {[%emt 0:00:10]} Ra8 {[%emt 0:00:04]} 63. a4 {[%emt 0:00:50]} (63. Rf3 $1 $14) 63... Kxf5 {[%emt 0:00:09]} 64. Rc3 {[%emt 0:00:26]} Rb8+ {[%emt 0:00:10]} 65. Kc6 {[%emt 0:00:32]} Rc8+ $1 {[%emt 0:01:23]} 66. Kb7 {[%emt 0:00:07]} Rc5 {[%emt 0:00:07]} 67. Kb6 {[%emt 0:00:08]} Rc8 {[%emt 0:00:05]} 68. a5 {[%emt 0:00:09][%cal Ba4a5,Ba5a6][%mdl 32] Strongly threatening Kb7.} Ke5 $2 {[%emt 0:02:44][%mdl 8192] [#]} (68... Kg4 $11) 69. Kb7 $1 $18 {[%emt 0:00:17]} Rc5 {[%emt 0:00:05] [#]} 70. a6 $1 {[%emt 0:00:08] White threatens a7 and mate.} Rb5+ {[%emt 0:01:07]} 71. Kc6 {[%emt 0:00:10]} Ra5 {[%emt 0:00:31]} 72. Kb6 {[%emt 0:00:05]} Ra4 {[%emt 0:00:19]} 73. Kb5 $1 {[%emt 0:00:10][%csl LRa4,LRc4]} Ra1 {[%emt 0:00:13]} 74. Rxc4 {[%emt 0:00:09] Threatening mate with Ra4.} Kd5 {[%emt 0:01:02]} 75. Rb4 {[%emt 0:00:30] Weighted Error Value: White=0.16 (very precise) /Black=0.16 (very precise)} 1-0

[Event "Croatian Team Cup Final 2022"]
[Site "Vodice"]
[Date "2022.05.20"]
[Round "4.3"]
[White "Jovanic, Ognjen"]
[Black "Cvitan, Ognjen"]
[Result "1/2-1/2"]
[ECO "D66"]
[WhiteElo "2509"]
[BlackElo "2454"]
[Annotator "TA"]
[PlyCount "44"]
[EventDate "2022.05.18"]
[EventType "team-tourn"]
[EventCountry "CRO"]
[SourceTitle "playchess.com"]
[Source "ChessBase"]
[SourceQuality "1"]
[TimeControl "40/5400+30:1800+30"]

{[%evp 26,30,0,0,15,0,23]} 1. d4 {[%emt 0:00:05]} Nf6 {[%emt 0:03:59]} 2. c4 {[%emt 0:00:12]} e6 {[%emt 0:00:11]} 3. Nf3 {[%emt 0:01:10]} d5 {[%emt 0:02:09]} 4. Nc3 {[%emt 0:01:05]} Be7 {[%emt 0:02:31]} 5. Bg5 {[%emt 0:01:52]} h6 {[%emt 0:01:43]} 6. Bh4 {[%emt 0:01:32]} O-O {[%emt 0:02:27]} 7. e3 {[%emt 0:00:10]} Nbd7 {[%emt 0:00:51]} 8. Rc1 {[%emt 0:06:13]} c6 {[%emt 0:05:04]} 9. Bd3 {[%emt 0:04:26]} dxc4 {[%emt 0:03:58]} 10. Bxc4 {[%emt 0:00:03]} b5 {[%emt 0:00:14]} 11. Bd3 {[%emt 0:01:24]} Bb7 {[%emt 0:01:24]} 12. O-O {[%emt 0:02:38]} Rc8 {[%emt 0:02:34]} 13. Qe2 {[%emt 0:08:04]} b4 {[%emt 0:04:10]} 14. Na4 {[%emt 0:11:11]} Qa5 $1 {[%emt 0:03:33] Against Ba6. D66: Queen's Gambit Declined: Classical: Main Line (7 Rc1 c6 8 Bd3).} 15. b3 {[%emt 0:03:15]} c5 {[%emt 0:00:28] [#] An uneventful encounter.  Weighted Error Value: White=0.06 (flawless) /Black=0.00 (flawless)} {Predecessor:} 16. Bb5 $146 Bc6 17. Bxc6 Rxc6 18. dxc5 Nxc5 19. Ne5 Rc7 20. Nxc5 Rxc5 21. Rxc5 Bxc5 22. Bxf6 gxf6 {1-0 (53) Georgiev,K (2662)-Houska,J (2393) Gibraltar 2008} 1/2-1/2

[Event "Croatian Team Cup Final 2022"]
[Site "Vodice"]
[Date "2022.05.20"]
[Round "4.4"]
[White "Rogic, Davor"]
[Black "Srbis, Jurica"]
[Result "1/2-1/2"]
[ECO "B92"]
[WhiteElo "2457"]
[BlackElo "2451"]
[Annotator "TA"]
[PlyCount "82"]
[EventDate "2022.05.18"]
[EventType "team-tourn"]
[EventCountry "CRO"]
[SourceTitle "playchess.com"]
[Source "ChessBase"]
[SourceQuality "1"]
[TimeControl "40/5400+30:1800+30"]

{[%evp 15,82,0,-8,-12,18,18,20,10,20,9,14,14,18,12,13,15,16,19,16,13,30,25,22,0,0,0,0,0,3,3,14,0,0,0,4,-28,-35,-32,-39,-55,-49,-94,-27,-26,-30,-61,-40,-41,-38,-59,-59,-56,-58,-36,-44,-29,-36,-41,-32,-25,-9,-12,0,-25,0,-8,0,-28,0]} 1. e4 {[%emt 0:00:12]} c5 {[%emt 0:00:21]} 2. Nf3 {[%emt 0:00:33]} d6 {[%emt 0:00:12]} 3. d4 {[%emt 0:00:49]} cxd4 {[%emt 0:00:06]} 4. Nxd4 {[%emt 0:00:13]} Nf6 {[%emt 0:00:17]} 5. Nc3 {[%emt 0:00:30]} a6 {[%emt 0:00:13]} 6. Be2 {[%emt 0:02:58]} e5 {[%emt 0:00:12]} 7. Nf3 {[%emt 0:00:17]} Be7 {[%emt 0:00:50]} 8. Bg5 {[%emt 0:00:26]} Nbd7 {[%emt 0:00:25]} 9. a4 $1 {[%emt 0:00:58] 9.a4 is better than 9.0-0. B92: Sicilian Najdorf: 6 Be2.} h6 {[%emt 0:00:49]} (9... Qb6 $5 {[%cal Rb6b2]}) 10. Be3 {[%emt 0:03:00]} Qc7 {[%emt 0:07:44]} 11. Nd2 {[%emt 0:03:27] The position is equal.} Nc5 {[%emt 0:03:45]} 12. O-O {[%emt 0:08:38]} Be6 {[%emt 0:08:28]} 13. Bf3 {[%emt 0:01:47]} O-O {[%emt 0:01:11]} 14. Qe2 {[%emt 0:04:14]} Rac8 {[%emt 0:04:13]} 15. a5 {[%emt 0:02:53]} Qc6 {[%emt 0:06:15]} 16. Rfd1 {[%emt 0:05:48] [#]} Rfd8 $146 {[%emt 0:02:04]} ({Predecessor:} 16... Rfe8 17. g3 Bf8 18. Bg2 Bg4 19. Bf3 Be6 20. Bg2 Rcd8 21. Bxc5 Qxc5 22. Nf1 Qb4 {0-1 (42) Salemgareev,T (2463)-Sarana,A (2635) Cheliabinsk 2021}) 17. h3 {[%emt 0:03:02]} d5 {[%emt 0:08:11]} 18. exd5 {[%emt 0:06:03]} Nxd5 {[%emt 0:00:27]} 19. Nxd5 {[%emt 0:04:19]} Bxd5 {[%emt 0:00:07]} 20. Bxd5 {[%emt 0:02:37]} Rxd5 {[%emt 0:01:16]} 21. Nc4 {[%emt 0:04:22] [#] And now Rxd5 would win.} Rcd8 {[%emt 0:04:45]} 22. Rxd5 {[%emt 0:02:28]} Qxd5 {[%emt 0:03:42]} 23. b3 {[%emt 0:08:16]} e4 {[%emt 0:03:09]} 24. Re1 {[%emt 0:02:26]} f5 {[%emt 0:01:30]} 25. Qh5 {[%emt 0:03:06]} Ne6 {[%emt 0:05:13]} 26. f3 {[%emt 0:13:41]} Bc5 {[%emt 0:15:20]} 27. fxe4 {[%emt 0:01:10]} Qxe4 {[%emt 0:01:34][%cal Of5f4] ...f4! is the strong threat.} 28. Qe2 {[%emt 0:06:06] [#]} Nd4 {[%emt 0:03:07]} (28... Bb4 $1 $17 {[%cal Rb4e1]} 29. Bd2 Bxd2 30. Nxd2 Qxe2 31. Rxe2 Nd4) 29. Bxd4 $11 {[%emt 0:00:48]} Rxd4 {[%emt 0:00:31]} 30. Kh1 {[%emt 0:01:54]} Qxe2 {[%emt 0:00:22]} (30... h5 {seems wilder.} 31. Kh2 Qxe2 32. Rxe2 Kf7) 31. Rxe2 $15 {[%emt 0:00:04][%mdl 4096] Endgame KRB-KRN} Rd1+ {[%emt 0:00:13]} 32. Kh2 {[%emt 0:00:04]} f4 {[%emt 0:00:54] ( -> ...Bg1+)} 33. h4 $1 {[%emt 0:01:23]} h5 {[%emt 0:02:00]} 34. Re5 {[%emt 0:03:52]} Bg1+ {[%emt 0:00:18]} 35. Kh3 {[%emt 0:00:05]} g6 {[%emt 0:00:11]} 36. Nb2 {[%emt 0:02:04]} Ra1 {[%emt 0:14:01] Hoping for ...Bd4.} 37. Nd3 {[%emt 0:00:37]} Be3 {[%emt 0:00:24][%cal Ra1h1]} 38. Kh2 {[%emt 0:01:12] Against Rh1+} Bg1+ {[%emt 0:00:09]} 39. Kh3 {[%emt 0:00:02]} Be3 {[%emt 0:00:10][%cal Ra1h1]} 40. Kh2 {[%emt 0:00:00] Prevents Rh1+.} Bg1+ {[%emt 0:00:00]} 41. Kh3 {[%emt 0:03:02]} Bb6 {[%emt 0:00:01] Weighted Error Value: White=0.05 (flawless) /Black=0.09 (flawless)} 1/2-1/2